lending/lending_fUSD_20240509
["ID","MTS","AMOUNT","RATE_DAILY","PERIOD"]
[326732691,1715290246940,-500.0,0.00041095,32]
[326732692,1715290246950,-500.0,0.00041095,33]
[326732693,1715290246959,-500.0,0.00041095,34]
[326732694,1715290246968,-500.0,0.00041095,35]
[326732695,1715290246978,-500.0,0.00041095,36]
[326732696,1715290246987,-500.0,0.00041095,37]
[326732697,1715290246997,-500.0,0.00041095,30]
[326732698,1715290247006,-500.0,0.00041095,2]
[326732699,1715290247016,-500.0,0.00041095,30]
[326732700,1715290247026,-500.0,0.00041095,30]
[326732701,1715290247036,-500.0,0.00041095,30]
[326732702,1715290247045,-500.0,0.00041095,30]
[326732703,1715290247055,-500.0,0.00041095,30]
[326732704,1715290247064,-500.0,0.00041095,30]
[326732705,1715290247074,-507.60870025,0.00041095,30]
[326732706,1715290247083,-850.55,0.00041095,30]
[326732707,1715290247093,-500.0,0.00041095,30]
[326732708,1715290247104,-500.0,0.00041095,38]
[326732709,1715290247113,-500.0,0.00041095,30]
[326732710,1715290247123,-500.0,0.00041095,30]
[326732711,1715290247132,-500.0,0.00041095,39]
[326732712,1715290247142,-483.1261637,0.00041095,40]
[326732713,1715290247151,-500.0,0.00041095,2]
[326732714,1715290247160,-500.0,0.00041095,30]
[326732715,1715290247171,-500.0,0.00041095,30]
[326732716,1715290247181,-500.0,0.00041095,30]
[326732717,1715290247190,-500.0,0.00041095,30]
[326732718,1715290247200,-500.0,0.00041095,30]
[326732719,1715290247209,-639.94,0.00041095,30]
[326732720,1715290247219,-500.0,0.00041095,30]
[326732721,1715290247228,-500.0,0.00041095,30]
[326732722,1715290247238,-500.0,0.00041095,30]
[326732723,1715290247248,-500.0,0.00041095,30]
[326732724,1715290247257,-500.0,0.00041095,2]
[326732725,1715290247267,-760.31,0.00041095,30]
[326732726,1715290247276,-500.0,0.00041095,30]
[326732727,1715290247285,-876.55,0.00041095,30]
[326732728,1715290247294,-500.0,0.00041095,30]
[326732729,1715290247303,-930.01,0.00041095,30]
[326732730,1715290247313,-500.0,0.00041095,30]
[326732731,1715290247322,-500.0,0.00041095,30]
[326732732,1715290247331,-544.07,0.00041095,30]
[326732733,1715290247341,-500.0,0.00041095,30]
[326732734,1715290247350,-1031.96,0.00041095,30]
[326732735,1715290247359,-152.83932151,0.00041095,30]
[326732736,1715290247369,-500.0,0.00041095,30]
[326732737,1715290247378,-397.34464003,0.00041095,30]
[326732738,1715290247387,-655.5,0.00041095,30]
[326732739,1715290247396,-500.0,0.00041095,30]
[326732740,1715290247406,-500.0,0.00041095,30]
[326732741,1715290247416,-500.0,0.00041095,30]
[326732742,1715290247426,-500.0,0.00041095,30]
[326732743,1715290247435,-500.0,0.00041095,30]
[326732744,1715290247444,-500.0,0.00041095,30]
[326732745,1715290247453,-914.2,0.00041095,30]
[326732746,1715290247462,-500.0,0.00041095,30]
[326732747,1715290247471,-652.93,0.00041095,30]
[326732748,1715290247481,-500.0,0.00041095,30]
[326732749,1715290247490,-500.0,0.00041095,30]
[326732750,1715290247499,-322.39453208,0.00041095,30]
[326732751,1715290247509,-500.0,0.00041095,30]
[326732752,1715290247518,-512.62,0.00041095,30]
[326732753,1715290247527,-500.0,0.00041095,30]
[326732754,1715290247536,-500.0,0.00041095,30]
[326732755,1715290247545,-500.0,0.00041095,30]
[326732756,1715290247554,-433.04035295,0.00041095,30]
[326732757,1715290247563,-500.0,0.00041095,30]
[326732758,1715290247573,-500.0,0.00041095,30]
[326732759,1715290247582,-500.0,0.00041095,30]
[326732760,1715290247591,-500.0,0.00041095,30]
[326732761,1715290247601,-500.0,0.00041095,30]
[326732762,1715290247610,-500.0,0.00041095,30]
[326732763,1715290247619,-500.0,0.00041095,30]
[326732764,1715290247628,-500.0,0.00041095,30]
[326732765,1715290247637,-500.0,0.00041095,30]
[326732766,1715290247647,-500.0,0.00041095,30]
[326732767,1715290247656,-500.0,0.00041095,30]
[326732768,1715290247665,-500.0,0.00041095,30]
[326732769,1715290247674,-609.55,0.00041095,30]
[326732770,1715290247683,-650.73,0.00041095,30]
[326732771,1715290247692,-500.0,0.00041095,30]
[326732772,1715290247701,-1710.98,0.00041095,30]
[326732773,1715290247710,-500.0,0.00041095,30]
[326732774,1715290247720,-838.03,0.00041095,30]
[326732775,1715290247730,-500.0,0.00041095,30]
[326732776,1715290247739,-500.0,0.00041095,30]
[326732777,1715290247748,-500.0,0.00041095,30]
[326732778,1715290247757,-502.13,0.00041095,30]
[326732779,1715290247767,-500.0,0.00041095,30]
[326732780,1715290247776,-500.0,0.00041095,30]
[326732781,1715290247785,-500.0,0.00041095,30]
[326732782,1715290247794,-500.0,0.00041095,30]
[326732783,1715290247803,-500.0,0.00041095,30]
[326732784,1715290247812,-500.0,0.00041095,30]
[326732785,1715290247821,-500.0,0.00041095,30]
[326732786,1715290247831,-1157.79,0.00041095,30]
[326732787,1715290247844,-812.76,0.00041095,2]
[326732788,1715290247853,-500.0,0.00041095,30]
[326732789,1715290247863,-500.0,0.00041095,30]
[326732790,1715290247872,-313.24345682,0.00041095,30]
[326732791,1715290247882,-500.0,0.00041095,30]
[326732792,1715290247891,-500.0,0.00041095,30]
[326732793,1715290247900,-500.0,0.00041095,30]
[326732794,1715290247910,-500.0,0.00041095,30]
[326732795,1715290247919,-500.0,0.00041095,30]
[326732796,1715290247928,-500.0,0.00041095,30]
[326732797,1715290247937,-150.0,0.00041095,30]
[326732798,1715290247947,-500.0,0.00041095,30]
[326732799,1715290247959,-500.0,0.00041095,30]
[326732800,1715290247968,-500.0,0.00041095,30]
[326732801,1715290247979,-500.0,0.00041095,30]
[326732802,1715290247988,-500.0,0.00041095,30]
[326732803,1715290247999,-503.69573,0.00041095,30]
[326732804,1715290248008,-501.28349657,0.00041095,30]
[326732805,1715290248017,-500.0,0.00041095,30]
[326732806,1715290248026,-500.0,0.00041095,30]
[326732807,1715290248036,-867.5,0.00041095,30]
[326732808,1715290248045,-500.0,0.00041095,30]
[326732809,1715290248054,-867.5,0.00041095,31]
[326732810,1715290248063,-500.0,0.00041095,30]
[326732811,1715290248072,-867.5,0.00041095,32]
[326732812,1715290248081,-500.0,0.00041095,30]
[326732813,1715290248090,-500.0,0.00041095,30]
[326732814,1715290248099,-867.5,0.00041095,33]
[326732815,1715290248108,-867.5,0.00041095,34]
[326732816,1715290248117,-500.0,0.00041095,30]
[326732817,1715290248127,-867.5,0.00041095,35]
[326732818,1715290248136,-867.5,0.00041095,36]
[326732819,1715290248145,-837.56,0.00041095,30]
[326732820,1715290248154,-867.5,0.00041095,37]
[326732821,1715290248163,-867.5,0.00041095,38]
[326732822,1715290248172,-867.5,0.00041095,39]
[326732823,1715290248181,-867.5,0.00041095,40]
[326732824,1715290248191,-500.0,0.00041095,30]
[326732825,1715290248200,-867.5,0.00041095,41]
[326732826,1715290248208,-867.5,0.00041095,42]
[326732827,1715290248218,-867.5,0.00041095,43]
[326732828,1715290248228,-500.0,0.00041095,30]
[326732829,1715290248238,-867.5,0.00041095,44]
[326732830,1715290248247,-170.0281152,0.00041095,30]
[326732831,1715290248256,-500.0,0.00041095,30]
[326732832,1715290248265,-867.5,0.00041095,45]
[326732833,1715290248275,-867.5,0.00041095,46]
[326732834,1715290248284,-500.0,0.00041095,30]
[326732835,1715290248293,-867.5,0.00041095,47]
[326732836,1715290248302,-617.0,0.00041095,30]
[326732837,1715290248311,-867.5,0.00041095,48]
[326732838,1715290248320,-500.0,0.00041095,30]
[326732839,1715290248329,-575.26,0.00041095,30]
[326732840,1715290248339,-500.0,0.00041095,30]
[326732841,1715290248348,-753.10265183,0.00041095,30]
[326732842,1715290248358,-2275.95,0.00041095,30]
[326732843,1715290248367,-500.0,0.00041095,30]
[326732844,1715290248376,-536.42,0.00041095,30]
[326732845,1715290248385,-500.0,0.00041095,30]
[326732846,1715290248395,-500.0,0.00041095,30]
[326732847,1715290248404,-503.65562885,0.00041095,30]
[326732848,1715290248413,-586.99,0.00041095,30]
[326732849,1715290248422,-500.0,0.00041095,30]
[326732850,1715290248431,-500.0,0.00041095,30]
[326732851,1715290248440,-638.06,0.00041095,30]
[326732852,1715290248450,-500.0,0.00041095,30]
[326732853,1715290248459,-783.57,0.00041095,30]
[326732854,1715290248468,-500.0,0.00041095,30]
[326732855,1715290248478,-514.49610923,0.00041095,30]
[326732856,1715290248489,-1957.57,0.00041095,30]
[326732857,1715290248498,-500.0,0.00041095,30]
[326732858,1715290248507,-500.0,0.00041095,30]
[326732859,1715290248516,-500.0,0.00041095,30]
[326732860,1715290248526,-500.0,0.00041095,30]
[326732861,1715290248535,-500.0,0.00041095,30]
[326732862,1715290248544,-1602.79,0.00041095,30]
[326732863,1715290248553,-1202.77,0.00041095,30]
[326732864,1715290248563,-500.0,0.00041095,30]
[326732865,1715290248572,-500.0,0.00041095,30]
[326732866,1715290248581,-500.0,0.00041095,30]
[326732867,1715290248591,-2000.0,0.00041095,30]
[326732868,1715290248600,-610.97385008,0.00041095,30]
[326732869,1715290248610,-500.0,0.00041095,30]
[326732870,1715290248619,-500.0,0.00041095,30]
[326732871,1715290248629,-500.0,0.00041095,30]
[326732872,1715290248638,-500.0,0.00041095,30]
[326732873,1715290248647,-500.0,0.00041095,30]
[326732874,1715290248656,-500.0,0.00041095,30]
[326732875,1715290248665,-500.0,0.00041095,30]
[326732876,1715290248674,-526.10516913,0.00041095,30]
[326732877,1715290248683,-1204.54,0.00041095,30]
[326732878,1715290248693,-505.64908172,0.00041095,30]
[326732879,1715290248702,-500.0,0.00041095,30]
[326732880,1715290248711,-1956.97,0.00041095,30]
[326732881,1715290248722,-500.0,0.00041095,30]
[326732882,1715290248731,-500.0,0.00041095,30]
[326732883,1715290248739,-500.0,0.00041095,30]
[326732884,1715290248749,-500.0,0.00041095,30]
[326732885,1715290248758,-500.0,0.00041095,30]
[326732886,1715290248767,-500.0,0.00041095,30]
[326732887,1715290248776,-500.0,0.00041095,30]
[326732888,1715290248785,-500.0,0.00041095,30]
[326732889,1715290248794,-500.0,0.00041095,30]
[326732890,1715290248804,-500.0,0.00041095,30]
[326732891,1715290248813,-500.0,0.00041095,30]
[326732892,1715290248822,-1059.73,0.00041095,30]
[326732893,1715290248832,-1106.02,0.00041095,30]
[326732894,1715290248844,-500.0,0.00041095,30]
[326732895,1715290248853,-500.0,0.00041095,30]
[326732896,1715290248862,-1909.69,0.00041095,30]
[326732897,1715290248872,-500.0,0.00041095,30]
[326732898,1715290248881,-500.0,0.00041095,30]
[326732899,1715290248890,-500.0,0.00041095,30]
[326732900,1715290248899,-500.0,0.00041095,30]
[326732901,1715290248911,-500.0,0.00041095,30]
[326732902,1715290248920,-500.0,0.00041095,30]
[326732903,1715290248929,-500.0,0.00041095,30]
[326732904,1715290248938,-500.0,0.00041095,30]
[326732905,1715290248948,-500.0,0.00041095,30]
[326732906,1715290248957,-1140.76,0.00041095,30]
[326732907,1715290248966,-500.0,0.00041095,30]
[326732908,1715290248976,-500.0,0.00041095,30]
[326732909,1715290248986,-500.0,0.00041095,30]
[326732910,1715290248995,-500.0,0.00041095,30]
[326732911,1715290249005,-151.0,0.00041095,14]
[326732912,1715290249015,-500.0,0.00041095,30]
[326732913,1715290249024,-500.0,0.00041095,30]
[326732914,1715290249034,-500.0,0.00041095,30]
[326732915,1715290249043,-500.0,0.00041095,30]
[326732916,1715290249052,-1043.65,0.00041095,30]
[326732917,1715290249061,-500.0,0.00041095,30]
[326732918,1715290249070,-500.0,0.00041095,31]
[326732919,1715290249079,-500.0,0.00041095,30]
[326732920,1715290249088,-947.45,0.00041095,30]
[326732921,1715290249097,-500.0,0.00041095,32]
[326732922,1715290249107,-500.0,0.00041095,30]
[326732923,1715290249116,-589.45575791,0.00041095,33]
[326732924,1715290249125,-500.0,0.00041095,30]
[326732925,1715290249134,-500.0,0.00041095,30]
[326732926,1715290249143,-915.39,0.00041095,30]
[326732927,1715290249152,-500.0,0.00041095,30]
[326732928,1715290249162,-1300.06,0.00041095,30]
[326732929,1715290249171,-500.0,0.00041095,30]
[326732930,1715290249180,-500.0,0.00041095,2]
[326732931,1715290249189,-500.0,0.00041095,30]
[326732932,1715290249198,-500.0,0.00041095,30]
[326732933,1715290249207,-500.0,0.00041095,30]
[326732934,1715290249216,-500.0,0.00041095,30]
[326732935,1715290249226,-1582.03,0.00041095,2]
[326732936,1715290249235,-500.0,0.00041095,30]
[326732937,1715290249244,-500.0,0.00041095,30]
[326732938,1715290249253,-500.0,0.00041095,30]
[326732939,1715290249262,-500.0,0.00041095,30]
[326732940,1715290249271,-500.0,0.00041095,30]
[326732941,1715290249279,-500.0,0.00041095,30]
[326732942,1715290249288,-1002.80210193,0.00041095,2]
[326732943,1715290249297,-500.0,0.00041095,30]
[326732944,1715290249306,-549.57,0.00041095,30]
[326732945,1715290249315,-500.0,0.00041095,30]
[326732946,1715290249323,-500.0,0.00041095,30]
[326732947,1715290249332,-500.0,0.00041095,30]
[326732948,1715290249341,-500.0,0.00041095,30]
[326732949,1715290249516,-339.36599711,0.00041095,30]
[326732950,1715290249526,-500.0,0.00041095,30]
[326732951,1715290249536,-500.0,0.00041095,30]
[326732952,1715290249545,-1226.01,0.00041095,30]
[326732953,1715290249554,-500.0,0.00041095,30]
[326732954,1715290249563,-500.0,0.00041095,2]
[326732955,1715290249572,-1445.73,0.00041095,30]
[326732956,1715290249581,-500.0,0.00041095,30]
[326732957,1715290249590,-500.0,0.00041095,30]
[326732958,1715290249599,-504.83636406,0.00041095,30]
[326732959,1715290249608,-500.0,0.00041095,30]
[326732960,1715290249617,-500.0,0.00041095,30]
[326732961,1715290249626,-500.0,0.00041095,30]
[326732962,1715290249635,-500.0,0.00041095,2]
[326732963,1715290249644,-500.0,0.00041095,30]
[326732964,1715290249653,-777.78,0.00041095,30]
[326732965,1715290249662,-500.0,0.00041095,30]
[326732966,1715290249671,-524.35878934,0.00041095,30]
[326732967,1715290249680,-500.0,0.00041095,30]
[326732968,1715290249689,-151.0,0.00041095,14]
[326732969,1715290249699,-1441.41,0.00041095,30]
[326732970,1715290249708,-500.0,0.00041095,30]
[326732971,1715290249717,-500.0,0.00041095,30]
[326732972,1715290249727,-500.0,0.00041095,30]
[326732973,1715290249736,-500.0,0.00041095,30]
[326732974,1715290249745,-292.55603142,0.00041095,30]
[326732975,1715290249754,-500.0,0.00041095,30]
[326732976,1715290249763,-440.58980476,0.00041095,30]
[326732977,1715290249773,-889.65,0.00041095,30]
[326732978,1715290249782,-500.0,0.00041095,30]
[326732979,1715290249791,-500.0,0.00041095,30]
[326732980,1715290249801,-500.0,0.00041095,30]
[326732981,1715290249810,-500.0,0.00041095,30]
[326732982,1715290249820,-190.90026738,0.00041095,30]
[326732983,1715290249829,-500.0,0.00041095,30]
[326732984,1715290249842,-500.0,0.00041095,30]
[326732985,1715290249851,-500.0,0.00041095,30]
[326732986,1715290249861,-500.0,0.00041095,30]
[326732987,1715290249870,-1043.61,0.00041095,30]
[326732988,1715290249879,-1085.76,0.00041095,30]
[326732989,1715290249888,-500.0,0.00041095,30]
[326732990,1715290249897,-500.0,0.00041095,30]
[326732991,1715290249906,-500.0,0.00041095,30]
[326732992,1715290249916,-500.0,0.00041095,30]
[326732993,1715290249925,-1399.12,0.00041095,30]
[326732994,1715290249934,-500.0,0.00041095,30]
[326732995,1715290249943,-500.0,0.00041095,30]
[326732996,1715290249952,-300.0,0.00041095,7]
[326732997,1715290249961,-500.0,0.00041095,30]
[326732998,1715290249970,-500.0,0.00041095,30]
[326732999,1715290249980,-479.6208141,0.00041095,30]
[326733000,1715290249989,-907.42,0.00041095,30]
[326733001,1715290249998,-500.0,0.00041095,30]
[326733002,1715290250007,-554.2651216,0.00041095,30]
[326733003,1715290250016,-500.0,0.00041095,30]
[326733004,1715290250025,-1040.39,0.00041095,30]
[326733005,1715290250035,-501.38133002,0.00041095,30]
[326733006,1715290250044,-882.53,0.00041095,30]
[326733007,1715290250054,-500.0,0.00041095,30]
[326733008,1715290250063,-500.0,0.00041095,30]
[326733009,1715290250073,-500.0,0.00041095,30]
[326733010,1715290250082,-500.0,0.00041095,30]
[326733011,1715290250091,-502.07665548,0.00041095,30]
[326733012,1715290250100,-500.0,0.00041095,30]
[326733013,1715290250109,-155.046048,0.00041095,14]
[326733014,1715290250118,-538.9084096,0.00041095,30]
[326733015,1715290250127,-500.0,0.00041095,30]
[326733016,1715290250136,-287.357776,0.00041095,14]
[326733017,1715290250145,-500.0,0.00041095,30]
[326733018,1715290250154,-500.0,0.00041095,30]
[326733019,1715290250163,-500.0,0.00041095,30]
[326733020,1715290250172,-843.82,0.00041095,30]
[326733021,1715290250181,-500.0,0.00041095,30]
[326733022,1715290250190,-514.55594688,0.00041095,30]
[326733023,1715290250199,-651.45,0.00041095,30]
[326733024,1715290250208,-500.0,0.00041095,30]
[326733025,1715290250218,-2410.5,0.00041095,30]
[326733026,1715290250227,-500.0,0.00041095,30]
[326733027,1715290250236,-500.0,0.00041095,30]
[326733028,1715290250246,-500.0,0.00041095,30]
[326733029,1715290250255,-640.14,0.00041095,30]
[326733030,1715290250264,-500.0,0.00041095,30]
[326733031,1715290250273,-500.0,0.00041095,30]
[326733032,1715290250282,-1010.46,0.00041095,30]
[326733033,1715290250291,-581.84,0.00041095,30]
[326733034,1715290250301,-500.0,0.00041095,30]
[326733035,1715290250310,-546.73,0.00041095,30]
[326733036,1715290250318,-500.0,0.00041095,30]
[326733037,1715290250327,-500.0,0.00041095,30]
[326733038,1715290250337,-500.0,0.00041095,30]
[326733039,1715290250346,-500.0,0.00041095,30]
[326733040,1715290250356,-500.0,0.00041095,30]
[326733041,1715290250366,-1394.83,0.00041095,30]
[326733042,1715290250375,-500.0,0.00041095,30]
[326733043,1715290250384,-500.0,0.00041095,30]
[326733044,1715290250393,-500.0,0.00041095,30]
[326733045,1715290250402,-500.0,0.00041095,30]
[326733046,1715290250411,-500.0,0.00041095,30]
[326733047,1715290250420,-1742.72,0.00041095,30]
[326733048,1715290250428,-1495.39,0.00041095,30]
[326733049,1715290250438,-960.78,0.00041095,30]
[326733050,1715290250447,-500.0,0.00041095,30]
[326733051,1715290250456,-500.0,0.00041095,30]
[326733052,1715290250465,-500.0,0.00041095,30]
[326733053,1715290250473,-500.0,0.00041095,30]
[326733054,1715290250482,-500.0,0.00041095,30]
[326733055,1715290250491,-1658.7,0.00041095,30]
[326733056,1715290250499,-500.0,0.00041095,30]
[326733057,1715290250509,-503.55804525,0.00041095,30]
[326733058,1715290250519,-708.19,0.00041095,30]
[326733059,1715290250528,-593.86,0.00041095,30]
[326733060,1715290250538,-1822.16,0.00041095,30]
[326733061,1715290250547,-500.0,0.00041095,30]
[326733062,1715290250556,-500.0,0.00041095,30]
[326733063,1715290250565,-500.0,0.00041095,30]
[326733064,1715290250574,-500.0,0.00041095,30]
[326733065,1715290250583,-500.0,0.00041095,30]
[326733066,1715290250592,-1084.13,0.00041095,30]
[326733067,1715290250601,-500.0,0.00041095,30]
[326733068,1715290250611,-500.0,0.00041095,30]
[326733069,1715290250619,-500.0,0.00041095,30]
[326733070,1715290250628,-500.0,0.00041095,30]
[326733071,1715290250638,-500.0,0.00041095,30]
[326733072,1715290250647,-500.0,0.00041095,30]
[326733073,1715290250656,-788.58,0.00041095,30]
[326733074,1715290250665,-500.0,0.00041095,30]
[326733075,1715290250674,-1076.63,0.00041095,30]
[326733076,1715290250683,-590.58,0.00041095,30]
[326733077,1715290250692,-500.0,0.00041095,30]
[326733078,1715290250701,-500.0,0.00041095,30]
[326733079,1715290250711,-500.0,0.00041095,30]
[326733080,1715290250720,-500.0,0.00041095,30]
[326733081,1715290250730,-500.0,0.00041095,30]
[326733082,1715290250739,-500.0,0.00041095,30]
[326733083,1715290250748,-500.0,0.00041095,30]
[326733084,1715290250757,-500.0,0.00041095,30]
[326733085,1715290250766,-500.0,0.00041095,30]
[326733086,1715290250775,-500.0,0.00041095,30]
[326733087,1715290250784,-500.0,0.00041095,30]
[326733088,1715290250792,-500.0,0.00041095,30]
[326733089,1715290250801,-500.0,0.00041095,30]
[326733090,1715290250810,-928.79,0.00041095,30]
[326733091,1715290250819,-500.0,0.00041095,30]
[326733092,1715290250828,-500.0,0.00041095,30]
[326733093,1715290250842,-500.0,0.00041095,30]
[326733094,1715290250851,-500.0,0.00041095,30]
[326733095,1715290250860,-909.38,0.00041095,30]
[326733096,1715290250869,-500.0,0.00041095,30]
[326733097,1715290250879,-505.5447415,0.00041095,30]
[326733098,1715290250888,-541.85,0.00041095,30]
[326733099,1715290250897,-500.0,0.00041095,30]
[326733100,1715290250906,-500.0,0.00041095,30]
[326733101,1715290250917,-500.0,0.00041095,30]
[326733102,1715290250926,-500.0,0.00041095,30]
[326733103,1715290250936,-272.8235071,0.00041095,30]
[326733104,1715290250945,-2911.76,0.00041095,30]
[326733105,1715290250954,-500.0,0.00041095,30]
[326733106,1715290250963,-500.0,0.00041095,30]
[326733107,1715290250971,-500.0,0.00041095,30]
[326733108,1715290250980,-500.0,0.00041095,2]
[326733109,1715290250990,-719.79,0.00041095,30]
[326733110,1715290250999,-2718.81,0.00041095,30]
[326733111,1715290251008,-500.0,0.00041095,30]
[326733112,1715290251017,-500.0,0.00041095,30]
[326733113,1715290251027,-500.0,0.00041095,30]
[326733114,1715290251037,-508.0055741,0.00041095,30]
[326733115,1715290251047,-1575.22,0.00041095,30]
[326733116,1715290251056,-500.0,0.00041095,30]
[326733117,1715290251066,-500.0,0.00041095,30]
[326733118,1715290251075,-500.0,0.00041095,30]
[326733119,1715290251084,-540.3,0.00041095,30]
[326733120,1715290251093,-500.0,0.00041095,31]
[326733121,1715290251102,-700.44,0.00041095,30]
[326733122,1715290251112,-500.0,0.00041095,32]
[326733123,1715290251122,-500.0,0.00041095,33]
[326733124,1715290251131,-500.0,0.00041095,34]
[326733125,1715290251140,-2350.05,0.00041095,30]
[326733126,1715290251150,-500.0,0.00041095,30]
[326733127,1715290251159,-560.09,0.00041095,30]
[326733128,1715290251168,-2067.31,0.00041095,30]
[326733129,1715290251177,-500.0,0.00041095,30]
[326733130,1715290251186,-500.0,0.00041095,30]
[326733131,1715290251195,-1065.75,0.00041095,30]
[326733132,1715290251204,-500.0,0.00041095,30]
[326733133,1715290251214,-500.0,0.00041095,30]
[326733134,1715290251224,-1252.97,0.00041095,30]
[326733135,1715290251233,-155.26916306,0.00041095,30]
[326733136,1715290251242,-500.0,0.00041095,30]
[326733137,1715290251251,-500.0,0.00041095,30]
[326733138,1715290251259,-516.93693052,0.00041095,30]
[326733139,1715290251268,-500.0,0.00041095,30]
[326733140,1715290251277,-2218.89,0.00041095,30]
[326733141,1715290251286,-500.0,0.00041095,30]
[326733142,1715290251294,-500.0,0.00041095,30]
[326733143,1715290251303,-500.0,0.00041095,30]
[326733144,1715290251313,-500.0,0.00041095,30]
[326733145,1715290251322,-963.81,0.00041095,30]
[326733146,1715290251331,-500.7490207,0.00041095,30]
[326733147,1715290251340,-513.6,0.00041095,30]
[326733148,1715290251349,-943.45,0.00041095,30]
[326733149,1715290251358,-505.26034864,0.00041095,30]
[326733150,1715290251367,-500.0,0.00041095,30]
[326733151,1715290251376,-500.0,0.00041095,30]
[326733152,1715290251385,-500.0,0.00041095,30]
[326733153,1715290251393,-500.0,0.00041095,30]
[326733154,1715290251402,-770.87,0.00041095,30]
[326733155,1715290251411,-621.91837437,0.00041095,30]
[326733156,1715290251421,-1332.55,0.00041095,30]
[326733157,1715290251430,-500.0,0.00041095,30]
[326733158,1715290251440,-798.6,0.00041095,30]
[326733159,1715290251449,-203.33046894,0.00041095,30]
[326733160,1715290251458,-500.0,0.00041095,30]
[326733161,1715290251468,-500.0,0.00041095,30]
[326733162,1715290251478,-787.19,0.00041095,30]
[326733163,1715290251487,-500.0,0.00041095,30]
[326733164,1715290251497,-500.0,0.00041095,30]
[326733165,1715290251506,-20000.0,0.00041095,2]
[326733166,1715290251515,-3381.99,0.00041095,30]
[326733167,1715290251524,-507.93031313,0.00041095,30]
[326733168,1715290251533,-500.0,0.00041095,30]
[326733169,1715290251542,-1198.32,0.00041095,30]
[326733170,1715290251551,-500.0,0.00041095,30]
[326733171,1715290251560,-1980.54,0.00041095,30]
[326733172,1715290251570,-1307.98,0.00041095,30]
[326733173,1715290251579,-500.0,0.00041095,30]
[326733174,1715290251588,-500.0,0.00041095,30]
[326733175,1715290251597,-5000.0,0.00041095,30]
[326733176,1715290251606,-500.0,0.00041095,30]
[326733177,1715290251615,-500.0,0.00041095,30]
[326733178,1715290251625,-500.0,0.00041095,30]
[326733179,1715290251634,-1221.93,0.00041095,30]
[326733180,1715290251643,-500.0,0.00041095,2]
[326733181,1715290251653,-500.0,0.00041095,30]
[326733182,1715290251662,-830.33,0.00041095,30]
[326733183,1715290251671,-500.0,0.00041095,30]
[326733184,1715290251680,-500.0,0.00041095,30]
[326733185,1715290251689,-500.0,0.00041095,31]
[326733186,1715290251699,-500.0,0.00041095,32]
[326733187,1715290251708,-500.0,0.00041095,33]
[326733188,1715290251717,-626.53065997,0.00041095,30]
[326733189,1715290251727,-501.72342958,0.00041095,30]
[326733190,1715290251737,-500.0,0.00041095,30]